bitfinex/quotes_ETHUSD_20241215
["timestamp","ask_amount","ask_price","bid_price","bid_amount"]
[1734287136869,2.91309807,3897.6,3896.0,0.8057]
[1734287137070,2.56596,3897.2,3896.1,0.8057]
[1734287137276,2.56596,3897.2,3896.3,0.8057]
[1734287141780,0.2504,3897.4,3896.3,0.8057]
[1734287141781,2.56588,3897.3,3896.3,0.8057]
[1734287142395,0.2504,3897.4,3896.5,0.7945]
[1734287142569,0.2504,3897.4,3896.7,0.7945]
[1734287143626,2.81624,3897.4,3896.7,0.7945]
[1734287143935,2.56588,3897.3,3896.7,0.7945]
[1734287145306,2.56601,3897.1,3896.7,0.7945]
[1734287148936,0.281641,3897.1,3896.7,0.7945]
[1734287149229,2.14289807,3896.8,3895.9,0.7945]
[1734287149410,2.56656,3896.3,3895.9,0.7945]
[1734287149732,2.56649,3896.4,3895.9,0.7945]
[1734287150100,2.56634,3896.6,3895.9,0.7945]
[1734287150308,2.14289807,3896.8,3895.9,0.7945]
[1734287150509,2.56628,3896.7,3895.9,0.7945]
[1734287150910,2.69534188,3896.8,3895.9,0.7945]
[1734287151132,2.56642,3896.5,3895.9,0.7945]
[1734287152540,2.56333179,3896.5,3895.9,0.7945]
[1734287156577,4.70913807,3896.8,3895.9,0.7945]
[1734287156752,4.70913807,3896.8,3895.9,0.73215847]
[1734287156901,5.51820588,3896.8,3895.9,0.73215847]
[1734287157556,2.56628,3896.7,3895.9,0.73215847]
[1734287157862,2.95196588,3896.8,3895.9,0.73215847]
[1734287158001,2.56634,3896.6,3895.9,0.73215847]
[1734287158201,2.95196588,3896.8,3895.9,0.73215847]
[1734287158441,5.51817588,3896.8,3895.9,0.73215847]
[1734287160256,3.38158,3897.0,3895.9,0.73215847]
[1734287160415,2.14289807,3897.2,3895.6,0.7559]
[1734287160615,4.70884807,3897.2,3895.7,0.7559]
[1734287161062,4.70884807,3897.2,3895.9,2.56677]
[1734287161226,4.70884807,3897.2,3896.0,0.7559]
[1734287161426,4.70884807,3897.2,3896.1,0.7559]
[1734287161639,4.70884807,3897.2,3896.2,0.7559]
[1734287162371,0.2504,3897.4,3896.3,0.7559]
[1734287162769,2.81623,3897.4,3896.3,0.7559]
[1734287163931,0.2504,3897.4,3896.3,0.7559]
[1734287164132,2.56588,3897.3,3896.3,0.7559]
[1734287164332,2.56588,3897.3,3896.4,0.7559]
[1734287166740,0.2504,3897.4,3896.3,0.6654863]
[1734287166741,0.2504,3897.4,3896.6,0.7559]
[1734287166939,0.2504,3897.4,3896.8,0.7559]
[1734287168278,2.56587,3897.3,3896.8,0.7559]
[1734287168481,2.56608,3897.0,3895.9,0.7559]
[1734287168685,2.56608,3897.0,3896.0,0.7559]
[1734287169326,2.14289807,3897.2,3896.0,3.0]
[1734287169544,4.70886807,3897.2,3896.1,0.7559]
[1734287170031,1.00867036,3897.0,3896.1,0.7559]
[1734287170335,3.57478036,3897.0,3896.2,0.66742848]
[1734287171232,3.57478036,3897.0,3896.1,0.7559]
[1734287173009,1.00867036,3896.4,3896.1,0.7559]
[1734287173693,3.57518036,3896.4,3896.1,0.7559]
[1734287174039,2.56655,3896.3,3896.1,0.7559]
[1734287174190,1.00867036,3896.4,3896.1,0.7559]
[1734287181307,2.56653,3896.3,3895.3,0.8056]
[1734287181661,1.00867036,3895.8,3895.3,0.8056]
[1734287181847,3.57574036,3895.5,3895.3,0.8056]
[1734287181990,1.00867036,3895.5,3894.5,0.8056]
[1734287182190,1.00867036,3895.2,3894.5,0.97056614]
[1734287183198,1.00867036,3895.2,3894.5,1.29752467]
[1734287183946,2.56706,3895.6,3894.6,0.32695853]
[1734287183947,1.00867036,3895.5,3894.6,0.32695853]
[1734287184125,4.7118662,3895.9,3894.6,0.32695853]
[1734287184339,4.7118662,3895.9,3894.7,0.8056]
[1734287184504,4.7118662,3895.9,3894.8,0.68652447]
[1734287185054,4.7118662,3895.9,3894.9,0.8056]
[1734287185551,2.14866532,3895.7,3894.9,0.8056]
[1734287185732,2.22084705,3895.6,3894.9,1.13255853]
[1734287185906,1.07433266,3895.7,3895.0,2.89432853]
[1734287186104,1.07433266,3895.7,3895.2,0.8056]
[1734287191656,1.07433266,3895.8,3895.2,0.8056]
[1734287191856,1.96249602,3895.8,3895.2,0.8056]
[1734287192353,1.07433266,3896.0,3895.2,0.8056]
[1734287192661,1.33218049,3895.9,3895.2,0.8056]
[1734287192824,3.29465636,3895.9,3895.2,0.8056]
[1734287193155,0.88810128,3895.8,3895.2,0.8056]
[1734287193449,1.07433266,3895.9,3895.2,0.8056]
[1734287193864,1.9624715,3895.9,3895.2,0.8056]
[1734287194033,0.88813884,3895.8,3895.2,0.8056]
[1734287194238,1.07433266,3895.9,3895.2,0.8056]
[1734287194625,3.29468008,3895.9,3895.2,0.8056]
[1734287194832,0.88813897,3895.8,3895.2,0.8056]
[1734287195049,1.07433266,3895.9,3895.2,0.8056]
[1734287195486,3.29463811,3895.9,3895.2,0.8056]
[1734287195771,0.88814719,3895.8,3895.2,0.8056]
[1734287195969,3.64106266,3896.0,3895.2,0.8056]
[1734287196180,0.88808697,3895.9,3895.2,0.8056]
[1734287196327,2.22017216,3895.9,3895.2,0.8056]
[1734287196529,0.88808697,3895.8,3895.2,0.8056]
[1734287196760,3.64106266,3896.0,3895.2,0.8056]
[1734287197035,0.88802739,3895.9,3895.2,0.8056]
[1734287197731,1.07433266,3896.0,3895.2,0.8056]
[1734287197938,3.29430721,3896.0,3895.2,0.8056]
[1734287198276,0.88799026,3895.9,3895.2,0.8056]
[1734287198429,3.64100266,3896.1,3895.2,0.8056]
[1734287198630,4.03399296,3896.0,3895.2,0.8056]
[1734287198857,2.21990851,3895.9,3895.2,0.8056]
[1734287200418,2.1450162,3895.5,3894.4,0.8094]
[1734287200916,2.56726,3895.2,3894.4,0.8094]
[1734287202295,2.56733,3895.1,3894.4,0.8094]
[1734287202829,2.56718,3895.4,3894.4,0.8094]
[1734287204406,2.56718,3895.4,3894.5,0.8094]
[1734287206007,1.00950255,3895.3,3894.5,0.8094]
[1734287211175,2.56733,3895.1,3894.5,0.8094]
[1734287211460,2.56704,3895.6,3894.5,0.8094]
[1734287211461,2.56753,3894.8,3894.5,0.8094]
[1734287211627,2.56753,3894.8,3893.3,1.611499]
[1734287211628,2.56767,3894.6,3893.7,0.7939]
[1734287211839,1.00950255,3894.4,3893.9,3.0]
[1734287212138,1.00950255,3894.4,3893.7,0.7939]
[1734287218833,1.00950255,3894.1,3893.7,0.7939]
[1734287219782,1.00950255,3894.8,3893.1,2.56863]
[1734287219783,1.00950255,3895.0,3893.9,0.7709]
[1734287220085,1.00950255,3894.7,3893.9,0.7709]
[1734287225434,1.00950255,3894.7,3893.9,1.404814]
[1734287227178,1.07433266,3895.3,3894.5,3.0]
[1734287227498,1.07433266,3895.7,3894.8,2.56752]
[1734287227709,3.15816788,3896.0,3894.8,2.56752]
[1734287227710,0.88815482,3895.6,3894.9,0.8272]
[1734287227857,1.07433266,3895.8,3894.9,0.8272]
[1734287228060,0.88811632,3895.7,3894.9,0.8272]
[1734287228359,0.8881612,3895.6,3894.9,0.8272]
[1734287228597,1.00950255,3895.7,3894.9,0.8272]
[1734287228910,0.88814931,3895.6,3894.9,0.8272]
[1734287229113,2.08383521,3895.7,3894.9,0.8272]
[1734287229403,1.00950255,3895.7,3894.9,0.8272]
[1734287229772,1.00950255,3895.7,3895.0,0.8272]
[1734287230107,1.07433266,3895.9,3895.1,3.39452]
[1734287230307,1.07433266,3896.1,3895.3,0.8272]
[1734287230459,0.88800045,3896.0,3895.3,0.8272]
[1734287230665,1.07433266,3896.2,3895.3,0.8272]
[1734287230885,3.29438961,3896.1,3895.3,0.8272]
[1734287231073,0.88802278,3896.0,3895.3,0.8272]
[1734287231268,1.07433266,3896.1,3895.3,0.8272]
[1734287231763,3.29429821,3896.0,3895.3,0.8272]
[1734287231997,0.8879698,3895.9,3895.3,0.8272]
[1734287232171,1.07433266,3896.0,3895.3,0.8272]
[1734287232495,1.33201473,3895.9,3895.3,0.8272]
[1734287232657,1.07433266,3896.0,3895.3,0.8272]
[1734287232860,1.33205658,3895.9,3895.3,0.8272]
[1734287233092,1.07433266,3896.0,3895.3,0.8272]
[1734287233503,1.96236249,3896.0,3895.3,0.8272]
[1734287233888,1.33204991,3895.9,3895.3,0.8272]
[1734287234095,3.2944124,3895.9,3895.3,0.8272]
[1734287234260,2.22007974,3895.8,3895.3,0.8272]
[1734287234460,0.88802983,3895.7,3895.3,0.8272]
[1734287234708,1.07433266,3896.0,3895.3,0.8272]
[1734287234857,3.64110266,3896.0,3895.3,0.8272]
[1734287235056,2.22013556,3895.9,3895.3,0.8272]
[1734287235573,0.88805583,3895.8,3895.3,0.8272]
[1734287235760,3.45492583,3895.8,3895.3,0.8272]
[1734287235962,0.88805583,3895.7,3895.3,0.8272]
[1734287236410,1.57964158,3895.7,3895.3,0.8272]
[1734287236574,0.69158575,3895.7,3894.6,0.7805]
[1734287237479,3.64120266,3895.8,3894.6,0.7805]
[1734287237685,0.88812081,3895.7,3894.6,0.7805]
[1734287237881,3.64120266,3895.8,3894.6,0.7805]
[1734287238209,0.88811776,3895.7,3894.6,0.7805]
[1734287240029,0.88811776,3895.7,3894.7,0.8148]
[1734287240318,3.64101266,3896.1,3894.9,0.8148]
[1734287240482,2.22023843,3896.0,3894.9,0.8148]
[1734287240806,2.22023843,3896.0,3894.9,3.8148]
[1734287240807,3.29457109,3896.0,3894.9,3.8148]
[1734287240965,0.88809537,3895.9,3895.0,0.8148]
[1734287241161,3.64101266,3896.1,3895.0,0.8148]
[1734287241388,2.22020766,3896.0,3895.0,0.8148]
[1734287242070,3.29454032,3896.0,3895.0,0.8148]
[1734287242266,0.88808306,3895.9,3895.0,0.8148]
[1734287242469,1.07433266,3896.0,3895.0,0.8148]
[1734287242798,3.2945424,3896.0,3895.0,0.8148]
[1734287243119,3.04149365,3895.9,3895.0,0.8148]
[1734287243302,0.88808396,3895.8,3895.0,0.8148]
[1734287243914,0.82128391,3895.9,3895.0,0.8148]
[1734287244079,0.88809981,3895.8,3895.0,0.8148]
[1734287245164,3.64106266,3896.0,3895.0,0.8148]
[1734287245468,3.64106266,3896.0,3895.0,1.2601052]
[1734287245469,0.88811012,3895.9,3895.0,1.2601052]
[1734287245675,0.88811012,3895.9,3895.1,0.8148]
[1734287245911,4.38112036,3896.1,3895.1,0.8148]
[1734287246113,2.22021668,3896.0,3895.1,0.8148]
[1734287246320,0.88808667,3895.9,3895.1,0.8148]
[1734287246482,4.38112036,3896.1,3895.1,1.30463572]
[1734287246666,2.22015983,3896.0,3895.1,1.30463572]
[1734287246867,0.88806393,3895.9,3895.1,1.30463572]
[1734287247172,3.64100266,3896.1,3895.1,1.30463572]
[1734287247484,2.22018503,3896.0,3895.1,1.30463572]
[1734287247663,0.88807401,3895.9,3895.1,1.30463572]
[1734287247864,3.64100266,3896.1,3895.1,1.30463572]
[1734287248172,2.22005245,3896.0,3895.1,1.30463572]
[1734287249487,3.29438511,3896.0,3895.1,1.30463572]
[1734287249688,0.88802098,3895.9,3895.1,1.30463572]
[1734287250007,3.64100266,3896.1,3895.1,1.30463572]
[1734287250204,2.21981505,3896.0,3895.1,1.30463572]
[1734287250413,4.78656505,3896.0,3895.1,1.30463572]
[1734287250722,2.56675,3896.0,3895.1,1.30463572]
[1734287251075,0.88788447,3895.9,3895.1,1.30463572]
[1734287251276,2.56683,3895.9,3895.1,0.8148]
[1734287252010,0.88790097,3895.8,3895.1,0.8148]
[1734287255400,2.56721,3895.3,3894.5,0.767]
[1734287255917,2.08357622,3895.6,3894.5,0.767]
[1734287256115,0.88790271,3895.5,3894.5,0.767]
[1734287256300,2.56707,3895.5,3894.6,0.767]
[1734287256502,1.07433266,3895.7,3894.6,0.767]
[1734287256852,1.07433266,3896.1,3895.0,0.767]
[1734287256999,1.96212354,3896.1,3895.0,0.767]
[1734287257199,0.88779088,3896.0,3895.0,0.767]
[1734287257445,4.65018622,3896.2,3895.2,0.767]
[1734287257604,0.88773656,3896.1,3895.2,0.767]
[1734287258798,3.29379331,3896.1,3895.2,0.767]
[1734287259040,0.88773656,3896.0,3895.2,0.767]
[1734287259480,2.08357622,3896.2,3895.2,0.767]
[1734287259691,0.88782547,3896.1,3895.3,0.7858]
[1734287263298,0.88782547,3896.1,3895.5,0.7858]
[1734287263493,1.07433266,3896.4,3895.5,0.7858]
[1734287263653,0.88812115,3896.3,3895.5,0.7858]
[1734287263989,1.07433266,3896.5,3895.7,0.7858]
[1734287264142,1.33215992,3896.4,3895.7,0.7858]
[1734287264345,1.07433266,3896.5,3895.7,0.7858]
[1734287264346,0.8881997,3896.3,3895.7,0.7858]
[1734287264569,1.07433266,3896.5,3895.7,0.7858]
[1734287264769,1.33230257,3896.4,3895.7,0.7858]
[1734287264983,1.07433266,3896.5,3895.9,0.7858]
[1734287265191,1.33230168,3896.4,3895.9,0.7858]
[1734287265383,1.96253378,3896.5,3895.9,0.7858]
[1734287265588,2.22107002,3896.4,3895.9,0.7858]
[1734287265887,0.88847154,3896.3,3895.9,0.7858]
[1734287266096,1.07433266,3896.5,3895.9,0.7858]
[1734287266263,2.22099787,3896.4,3895.9,0.7858]
[1734287267458,0.88839915,3896.4,3895.9,0.7858]
[1734287267784,0.88839915,3896.3,3895.9,0.7858]
[1734287267983,1.07433266,3896.5,3895.9,0.7858]
[1734287269689,3.64074266,3896.5,3895.9,0.7858]
[1734287269896,2.56653,3896.4,3895.9,0.7858]
[1734287271809,2.56655,3896.3,3895.9,0.7858]
[1734287278024,2.08357622,3896.5,3895.9,0.7858]
[1734287278217,2.56662,3896.2,3895.9,0.7858]
[1734287279238,2.56648,3896.4,3895.9,0.7858]
[1734287283529,2.08357622,3896.5,3895.9,0.7858]
[1734287283869,2.56655,3896.3,3895.9,0.7858]
[1734287284164,1.07433266,3896.1,3895.9,0.7858]
[1734287284377,2.22341003,3896.0,3895.9,0.7858]
[1734287286476,2.22351778,3896.0,3895.9,0.7858]
[1734287287052,0.88936401,3896.0,3895.9,0.7858]
[1734287287846,0.88940871,3896.0,3895.9,0.7858]
[1734287289066,1.07433266,3896.2,3895.9,0.7858]
[1734287289273,0.88937718,3896.1,3895.9,0.7858]
[1734287289537,2.14866533,3896.6,3895.9,0.7858]
[1734287289538,1.07433266,3896.3,3895.9,0.7858]
[1734287289767,2.22340443,3896.2,3895.9,0.7858]
[1734287289979,0.88936177,3896.1,3895.9,0.7858]
[1734287290186,1.07433266,3896.3,3895.9,0.7858]
[1734287290390,2.22340535,3896.2,3895.9,0.7858]
[1734287290599,0.88936214,3896.1,3895.9,0.7858]
[1734287290747,1.07433266,3896.3,3895.9,0.7858]
[1734287290946,2.22342475,3896.2,3895.9,0.7858]
[1734287291145,0.8893699,3896.1,3895.9,0.7858]
[1734287291344,1.07433266,3896.3,3895.9,0.7858]
[1734287291569,2.2234467,3896.2,3895.9,0.7858]
[1734287291772,0.88937868,3896.1,3895.9,0.7858]
[1734287291961,1.07433266,3896.3,3895.9,0.7858]
[1734287292258,2.22344252,3896.2,3895.9,0.7858]
[1734287292441,0.88937672,3896.1,3895.9,0.7858]
[1734287292642,1.07433266,3896.3,3895.9,0.7858]
[1734287292842,2.2234252,3896.2,3895.9,0.7858]
[1734287293056,0.88937008,3896.1,3895.9,0.7858]
[1734287293300,1.07433266,3896.3,3895.9,0.37858]
[1734287293455,2.22339571,3896.2,3896.0,0.7503]
[1734287293660,0.88935828,3896.1,3896.0,0.7503]
[1734287294700,0.88935281,3896.1,3896.0,0.7503]
[1734287295491,1.07433266,3896.3,3896.0,0.7503]
[1734287295694,2.22340098,3896.2,3896.0,0.7503]
[1734287295878,1.07433266,3896.3,3896.0,0.7503]
[1734287296087,2.22340075,3896.2,3896.0,0.7503]
[1734287296287,1.07433266,3896.3,3896.0,0.7503]
[1734287296500,0.88936564,3896.2,3896.0,0.7503]
[1734287296723,0.88936564,3896.1,3896.0,0.7503]
[1734287296865,0.88938803,3896.1,3896.0,0.7503]
[1734287301202,0.88967244,3896.1,3896.0,0.7503]
[1734287302620,1.9640051,3896.1,3896.0,0.7503]
[1734287304593,0.88967244,3896.1,3896.0,0.7503]
[1734287305719,0.89047351,3896.1,3896.0,0.7503]
[1734287306440,2.22618377,3896.1,3896.0,0.7503]
[1734287308463,3.83768277,3896.1,3896.0,0.7503]
[1734287308668,3.83768277,3896.1,3895.7,0.8247]
[1734287308957,3.83768277,3896.1,3895.2,1.3498622]
[1734287308958,4.71548533,3895.9,3895.2,1.3498622]
[1734287309109,1.07738414,3895.5,3895.2,1.3498622]
[1734287309306,0.89047351,3895.4,3895.2,1.3498622]
[1734287309510,1.07738414,3895.5,3895.2,1.3498622]
[1734287309831,0.89067684,3895.4,3895.2,1.3498622]
[1734287310026,1.07738414,3895.5,3895.2,1.3498622]
[1734287310226,2.22668395,3895.4,3895.2,1.3498622]
[1734287310442,1.07738414,3895.6,3895.2,1.3498622]
[1734287310761,2.22625521,3895.5,3895.2,1.3498622]
[1734287311054,0.89050208,3895.4,3895.2,1.3498622]
[1734287311215,1.07738414,3895.6,3895.2,1.3498622]
[1734287311555,2.22598238,3895.5,3895.2,1.3498622]
[1734287311757,0.89039295,3895.4,3895.2,1.3498622]
[1734287311963,1.07738414,3895.6,3895.2,1.3498622]
[1734287312170,2.22596553,3895.5,3895.2,1.3498622]
[1734287312380,1.07738414,3895.6,3895.2,1.3498622]
[1734287312675,2.22574418,3895.5,3895.2,1.3498622]
[1734287312841,1.07738414,3895.6,3895.2,1.3498622]
[1734287313029,2.22576086,3895.5,3895.2,1.89228169]
[1734287313230,1.07738414,3895.6,3895.2,1.89228169]
[1734287313468,2.22557046,3895.5,3895.2,1.89228169]
[1734287313657,1.07738414,3895.6,3895.2,1.89228169]
[1734287313982,2.22557711,3895.5,3895.2,1.89228169]
[1734287314130,1.07738414,3895.6,3895.3,0.18922817]
[1734287314466,2.56682,3895.9,3895.3,0.18922817]
[1734287314467,1.07738414,3895.7,3895.3,0.18922817]
[1734287314651,2.22540418,3895.6,3895.3,0.18922817]
[1734287314861,1.07738414,3895.7,3895.3,0.18922817]
[1734287315063,0.89015362,3895.6,3895.3,0.18922817]
[1734287315263,1.07738414,3895.7,3895.3,0.18922817]
[1734287315580,2.22532417,3895.6,3895.3,0.18922817]
[1734287315774,1.07738414,3895.7,3895.3,0.18922817]
[1734287315927,2.22533185,3895.6,3895.3,0.18922817]
[1734287316127,1.07738414,3895.7,3895.3,0.18922817]
[1734287316327,2.22531115,3895.6,3895.3,0.18922817]
[1734287316565,1.07738414,3895.7,3895.3,0.18922817]
[1734287316766,0.89009441,3895.6,3895.3,0.18922817]
[1734287316929,1.07738414,3895.7,3895.3,0.18922817]
[1734287317124,0.89008863,3895.6,3895.3,0.18922817]
[1734287317367,1.07738414,3895.7,3895.3,0.18922817]
[1734287317666,0.89004484,3895.6,3895.3,0.18922817]
[1734287317972,0.89004484,3895.5,3895.2,1.3498622]
[1734287318284,0.89008798,3895.4,3895.2,1.3498622]
[1734287318454,1.07738414,3895.6,3895.2,1.3498622]
[1734287318654,0.89000187,3895.5,3895.2,1.3498622]
[1734287318982,1.07738414,3895.7,3895.2,1.3498622]
[1734287319133,3.30237669,3895.6,3895.2,1.3498622]
[1734287319468,0.88999702,3895.5,3895.2,1.3498622]
[1734287319683,1.07738414,3895.6,3895.2,1.3498622]
[1734287319893,2.22488543,3895.5,3895.2,1.3498622]
[1734287320185,1.07738414,3895.6,3895.2,1.3498622]
[1734287320343,0.88992058,3895.5,3895.2,1.3498622]
[1734287320546,1.07738414,3895.6,3895.2,1.3498622]
[1734287320745,0.88991158,3895.5,3895.2,1.3498622]
[1734287320983,1.07738414,3895.6,3895.2,1.3498622]
[1734287321153,0.88990032,3895.5,3895.2,1.3498622]
[1734287321363,1.07738414,3895.7,3895.2,1.3498622]
[1734287321686,2.22462373,3895.6,3895.2,0.5251622]
[1734287321868,0.88984949,3895.5,3895.2,0.5251622]
[1734287322071,1.07738414,3895.7,3895.2,0.5251622]
[1734287322256,2.2246247,3895.6,3895.2,0.5251622]
[1734287322446,0.88984988,3895.5,3895.2,0.5251622]
[1734287322785,1.07738414,3895.6,3895.2,0.5251622]
[1734287322992,0.88981855,3895.5,3895.2,0.5251622]
[1734287323284,1.07738414,3895.6,3894.9,0.8203]
[1734287323494,2.22445593,3895.5,3894.9,1.56652727]
[1734287323698,0.88978237,3895.4,3894.9,1.56652727]
[1734287323859,1.07738414,3895.5,3894.9,1.56652727]
[1734287324054,2.22448954,3895.4,3894.9,1.56652727]
[1734287324254,1.07738414,3895.5,3894.9,1.56652727]
[1734287324573,0.88972954,3895.4,3895.0,0.45665273]
[1734287324912,1.07738414,3895.5,3895.0,0.45665273]
[1734287325194,0.88970974,3895.4,3895.1,0.51625949]
[1734287325369,1.07738414,3895.6,3895.1,0.51625949]
[1734287325697,2.2241046,3895.5,3895.1,0.51625949]
[1734287325897,0.88964184,3895.4,3895.1,0.69558071]
[1734287326060,1.07738414,3895.6,3895.1,0.69558071]
[1734287326260,2.22410457,3895.5,3895.1,0.69558071]
[1734287326484,0.88964183,3895.4,3895.1,0.69558071]
[1734287326652,1.07738414,3895.6,3895.1,0.69558071]
[1734287326856,2.22399053,3895.5,3895.1,0.69558071]
[1734287327117,0.88959621,3895.4,3895.1,0.69558071]
[1734287327401,1.07738414,3895.6,3895.1,0.69558071]
[1734287327601,2.22388625,3895.5,3895.1,0.69558071]
[1734287327769,0.8895545,3895.4,3895.1,0.69558071]
[1734287328097,1.07738414,3895.6,3895.1,0.69558071]
[1734287328305,2.2238602,3895.5,3895.1,0.69558071]
[1734287328493,0.88954408,3895.4,3895.1,0.69558071]
[1734287328669,1.07738414,3895.6,3895.1,0.69558071]
[1734287328992,2.22375665,3895.5,3895.1,0.69558071]
[1734287329201,0.88950266,3895.4,3895.1,0.69558071]
[1734287329372,1.07738414,3895.6,3895.1,0.69558071]
[1734287329572,2.22363887,3895.5,3895.1,0.69558071]
[1734287329771,0.88945555,3895.4,3895.2,0.19725334]
[1734287329984,1.07738414,3895.8,3895.2,0.19725334]
[1734287330204,2.22349075,3895.7,3895.2,0.19725334]
[1734287330358,1.07738414,3895.8,3895.2,0.19725334]
[1734287330557,0.88936639,3895.7,3895.2,0.19725334]
[1734287330755,1.07738414,3895.8,3895.3,0.41701656]
[1734287330959,0.88937584,3895.7,3895.3,0.41701656]
[1734287331156,1.07738414,3895.8,3895.3,0.41701656]
[1734287331403,2.22344405,3895.7,3895.3,0.41701656]
[1734287331564,1.07738414,3895.8,3895.3,0.41701656]
[1734287331899,0.88937542,3895.7,3895.3,0.41701656]
[1734287332199,0.88938597,3895.6,3895.3,0.41701656]
[1734287332495,1.07738414,3895.8,3895.3,0.41701656]
[1734287332705,0.88935917,3895.7,3895.3,0.41701656]
[1734287332863,1.07738414,3895.8,3895.3,0.41701656]
[1734287333223,0.8893571,3895.7,3895.2,0.19725334]
[1734287333373,1.07738414,3895.9,3895.3,0.7978]
[1734287333564,0.88933041,3895.8,3895.3,0.7978]
[1734287333763,1.07738414,3896.0,3895.3,0.7978]
[1734287333958,2.22328752,3895.9,3895.3,0.7978]
[1734287334159,0.88931501,3895.8,3895.4,0.40785628]
[1734287334359,1.07738414,3896.0,3895.4,0.40785628]
[1734287334631,2.22331347,3895.9,3895.4,0.40785628]
[1734287334897,0.88932539,3895.8,3895.4,0.40785628]
[1734287335095,1.07738414,3896.0,3895.4,0.40785628]
[1734287335298,2.22330987,3895.9,3895.5,0.39701596]
[1734287335602,1.07738414,3896.0,3895.5,0.39701596]
[1734287335603,0.88932395,3895.8,3895.5,0.39701596]
[1734287335766,1.07738414,3896.0,3895.3,0.7978]
[1734287335964,3.30081664,3895.9,3895.3,0.7978]
[1734287336176,2.2234325,3895.8,3895.3,0.7978]
[1734287336374,0.889373,3895.7,3895.3,0.7978]
[1734287336579,1.07738414,3895.9,3895.3,0.7978]
[1734287336873,2.22350093,3895.8,3895.4,0.15113128]
[1734287337076,1.07738414,3895.9,3895.4,0.15113128]
[1734287337290,2.22350075,3895.8,3895.4,0.15113128]
[1734287337601,1.07738414,3896.0,3895.5,0.7978]
[1734287337802,0.88938941,3895.9,3895.5,0.7978]
[1734287338005,1.07738414,3896.1,3895.6,0.39489313]
[1734287338297,1.61607621,3896.2,3895.6,0.39489313]
[1734287338298,3.30085447,3896.0,3895.6,0.39489313]
[1734287338531,0.88938813,3895.9,3895.6,0.39489313]
[1734287338699,1.07738414,3896.0,3895.6,0.39489313]
[1734287338899,0.8894154,3895.9,3895.6,0.39489313]
[1734287339086,1.07738414,3896.0,3895.7,0.13438244]
[1734287339285,0.88941055,3895.9,3895.7,0.13438244]
[1734287339489,1.07738414,3896.0,3895.7,0.13438244]
[1734287339741,0.88944619,3895.9,3895.7,0.13438244]
[1734287340031,1.07738414,3896.0,3895.7,0.13438244]
[1734287340326,0.88944296,3895.9,3895.7,0.13438244]
[1734287340618,1.07738414,3896.0,3895.7,0.13438244]
[1734287340926,0.88946661,3895.9,3895.7,0.13438244]
[1734287341227,1.07738414,3896.0,3895.7,0.13438244]
[1734287341396,3.30120367,3895.9,3895.5,0.7978]
[1734287341586,0.88952781,3895.8,3895.5,0.7978]
[1734287341918,0.88952781,3895.8,3895.1,0.51625949]
[1734287341919,2.22386179,3895.7,3895.2,0.7928]
[1734287342081,0.88952781,3895.6,3895.2,0.7928]
[1734287342286,1.07738414,3895.7,3895.2,0.7928]
[1734287342529,3.30150613,3895.6,3895.2,0.7928]
[1734287342691,2.22408405,3895.5,3895.2,0.7928]
[1734287342896,0.88963163,3895.4,3895.2,0.7928]
[1734287343086,1.07738414,3895.6,3895.2,0.7928]
[1734287343304,2.22408598,3895.5,3895.2,0.7928]
[1734287343626,0.88963439,3895.4,3895.2,0.7928]
[1734287343821,1.07738414,3895.6,3895.2,0.7928]
[1734287344031,2.22415316,3895.5,3895.2,0.7928]
[1734287344209,0.88966126,3895.4,3895.2,0.7928]
[1734287344389,1.07738414,3895.6,3895.2,0.7928]
[1734287344589,2.22422566,3895.5,3895.2,0.7928]
[1734287344818,1.07738414,3895.6,3895.2,0.7928]
[1734287344819,0.88969026,3895.4,3895.2,0.7928]
[1734287345014,1.07738414,3895.6,3895.2,0.7928]
[1734287345184,2.22420178,3895.5,3895.2,0.7928]
[1734287345385,0.88968071,3895.4,3895.2,0.7928]
[1734287345725,1.07738414,3895.6,3895.2,0.7928]
[1734287345890,0.88970905,3895.5,3895.2,0.7928]
[1734287346090,1.07738414,3895.6,3895.2,0.7928]
[1734287346285,2.22430409,3895.5,3895.2,0.7928]
[1734287346511,0.88975583,3895.4,3895.2,0.7928]
[1734287346711,1.07738414,3895.6,3895.2,0.7928]
[1734287346916,2.22438363,3895.5,3895.2,0.7928]
[1734287347089,0.88975183,3895.4,3895.2,0.7928]
[1734287347430,1.07738414,3895.6,3895.2,0.7928]
[1734287347634,0.88978543,3895.5,3895.2,0.92370595]
[1734287347798,1.61607621,3895.8,3895.2,0.92370595]
[1734287347799,1.07738414,3895.8,3895.2,0.92370595]
[1734287348128,0.8897263,3895.7,3895.3,0.7928]
[1734287348332,1.07738414,3895.9,3895.3,0.7928]
[1734287348484,2.22448675,3895.8,3895.5,1.80204356]
[1734287348685,1.07738414,3896.0,3895.6,0.7928]
[1734287348902,0.88976813,3895.9,3895.6,3.35979]
[1734287349119,0.88976813,3895.9,3895.5,1.00924356]
[1734287349120,1.07738414,3896.2,3895.8,2.56683]
[1734287349307,1.07738414,3896.5,3895.9,0.7928]
[1734287349500,2.22414925,3896.4,3896.1,0.7928]
[1734287349701,1.07738414,3896.5,3896.1,0.7928]
[1734287349899,0.88964421,3896.4,3896.1,0.7928]
[1734287350123,1.07738414,3896.6,3896.1,0.7928]
[1734287350435,0.88943448,3896.5,3896.1,7.36866356]
[1734287350631,1.07738414,3896.8,3896.3,2.56647]
[1734287350790,1.07738414,3896.9,3896.4,1.80204356]
[1734287351140,1.07738414,3897.1,3896.4,1.80204356]
[1734287351355,1.07738414,3897.3,3896.6,2.56632]
[1734287351492,2.2223193,3897.2,3896.7,0.7928]
[1734287351692,0.88892772,3897.1,3896.7,1.28073151]
[1734287352048,1.07738414,3897.3,3896.7,1.28073151]
[1734287352189,0.88851271,3897.2,3896.7,1.28073151]
[1734287352529,1.32778414,3897.4,3896.7,1.28073151]
[1734287352692,2.22126745,3897.3,3896.7,1.28073151]
[1734287352901,0.88850698,3897.2,3896.8,0.38470515]
[1734287353296,0.2504,3897.4,3896.8,0.38470515]
[1734287353806,0.88816182,3897.3,3896.7,1.28073151]
[1734287353995,1.32778414,3897.4,3896.7,1.28073151]
[1734287354188,0.88818375,3897.3,3896.7,1.28073151]
[1734287355199,0.2504,3897.4,3896.7,1.28073151]
[1734287355616,0.88766154,3897.3,3896.7,1.28073151]
[1734287355987,0.2504,3897.4,3896.7,1.28073151]
[1734287356408,0.2504,3897.4,3896.7,0.7928]
[1734287362533,0.24020039,3897.4,3896.7,0.7928]
[1734287366241,0.7869,3897.3,3896.4,0.51095152]